bitfinex-derivatives/quotes_ETHF0:USTF0_20251117
["timestamp","ask_amount","ask_price","bid_price","bid_amount"]
[1763402837750,3.21073451,3068.3,3067.5,0.00489484]
[1763402838351,3.21073451,3068.3,3067.6,3.2078]
[1763402838858,0.00293451,3068.3,3067.6,3.2078]
[1763402839048,0.4072,3067.9,3066.8,3.2078]
[1763402839254,3.2078,3067.4,3066.8,3.2078]
[1763402839456,3.2078,3067.8,3066.8,3.2078]
[1763402839653,3.2078,3067.4,3066.8,3.2078]
[1763402839959,3.2078,3068.0,3066.8,3.2078]
[1763402840165,3.2078,3067.6,3067.1,0.00489484]
[1763402840352,3.2078,3067.2,3066.8,2.41125843]
[1763402840552,3.2078,3067.2,3066.8,0.00254988]
[1763402841254,3.2078,3067.2,3066.8,4.988e-05]
[1763402842362,3.2078,3066.9,3066.8,4.988e-05]
[1763402843350,3.2078,3067.3,3066.8,4.988e-05]
[1763402844165,3.2078,3067.3,3066.8,3.20784988]
[1763402844454,3.2078,3067.7,3066.8,4.03514988]
[1763402844658,3.2078,3067.7,3066.8,3.20784988]
[1763402844858,3.2078,3067.6,3066.8,3.20784988]
[1763402845060,3.2078,3067.7,3066.8,3.20784988]
[1763402845259,3.2078,3067.3,3066.8,3.20784988]
[1763402845659,3.2078,3067.3,3066.8,4.988e-05]
[1763402845859,3.2078,3067.6,3066.8,4.988e-05]
[1763402846164,3.2078,3067.3,3066.8,4.988e-05]
[1763402846351,3.2078,3067.3,3066.8,3.20784988]
[1763402846660,3.2078,3067.7,3066.8,3.20784988]
[1763402846962,3.2078,3067.3,3066.8,3.20784988]
[1763402847165,0.00293451,3068.3,3066.8,3.20784988]
[1763402847363,0.00293451,3068.3,3067.2,3.2078]
[1763402847364,3.2078,3067.8,3067.2,3.2078]
[1763402847553,3.2078,3067.8,3067.0,0.7918]
[1763402847554,3.2078,3068.2,3067.7,3.2078]
[1763402847761,0.00293451,3068.3,3068.1,3.2078]
[1763402848164,0.00293451,3068.3,3067.3,3.2078]
[1763402848369,3.2078,3068.1,3067.3,3.2078]
[1763402849167,3.2078,3068.1,3067.0,0.7918]
[1763402849168,3.2078,3067.7,3067.0,0.7918]
[1763402849367,3.2078,3067.7,3066.8,4.988e-05]
[1763402849665,3.2078,3067.3,3066.8,4.988e-05]
[1763402850063,3.2078,3068.0,3067.0,3.2078]
[1763402850260,3.2078,3067.6,3067.0,3.2078]
[1763402850464,3.2078,3067.2,3066.8,4.988e-05]
[1763402851468,0.71494832,3067.1,3066.8,4.988e-05]
[1763402853369,2.26085555,3067.0,3066.8,4.988e-05]
[1763402853565,1.84181617,3066.9,3066.8,4.988e-05]
[1763402853865,0.71494832,3066.9,3066.8,4.988e-05]
[1763402854071,7.12666272,3066.9,3066.8,4.988e-05]
[1763402854265,7.84161104,3066.9,3066.8,4.988e-05]
[1763402854466,0.71494832,3066.9,3066.8,4.988e-05]
[1763402855662,1.84161104,3067.1,3066.8,4.988e-05]
[1763402855865,1.84161104,3067.0,3066.8,4.988e-05]
[1763402856173,1.84161104,3066.9,3066.8,4.988e-05]
[1763402856369,0.71494832,3066.9,3066.8,4.988e-05]
[1763402856676,6.71494832,3066.9,3066.8,4.988e-05]
[1763402857066,8.40408271,3066.9,3066.8,4.988e-05]
[1763402857267,6.71494832,3066.9,3066.8,4.988e-05]
[1763402857775,6.71529199,3066.9,3066.8,4.988e-05]
[1763402859077,0.71529199,3066.9,3066.8,4.988e-05]
[1763402859867,0.8623,3067.0,3066.8,4.988e-05]
[1763402860069,0.71529199,3066.9,3066.8,4.988e-05]
[1763402860577,1.84198413,3066.9,3066.8,4.988e-05]
[1763402860770,0.71529199,3066.9,3066.8,4.988e-05]
[1763402861278,0.71529199,3066.9,3066.8,6.00004988]
[1763402861483,0.71529199,3066.9,3066.8,4.988e-05]
[1763402861776,0.71529199,3067.1,3066.8,4.988e-05]
[1763402861976,1.84198413,3067.1,3066.8,4.988e-05]
[1763402862182,1.84198413,3067.0,3066.8,4.988e-05]
[1763402862380,0.71529199,3066.9,3066.8,4.988e-05]
[1763402862971,1.84198413,3067.1,3066.8,4.988e-05]
[1763402863169,0.71529199,3067.0,3066.8,4.988e-05]
[1763402863477,0.71529199,3066.9,3066.8,4.988e-05]
[1763402863881,1.84198413,3067.1,3066.8,4.988e-05]
[1763402864072,0.71529199,3067.0,3066.8,4.988e-05]
[1763402864475,0.71529199,3066.9,3066.8,4.988e-05]
[1763402864679,2.54138869,3067.2,3066.8,3.20784988]
[1763402865177,3.2078,3067.7,3066.8,3.20784988]
[1763402866079,4.33449214,3067.7,3066.8,3.20784988]
[1763402867074,1.12669214,3067.6,3066.8,3.20784988]
[1763402867668,3.2078,3067.7,3067.2,3.9996]
[1763402868075,3.2078,3067.7,3067.3,6.0]
[1763402868076,2.81612367,3067.7,3067.3,6.0]
[1763402868276,0.00293451,3068.3,3067.6,3.2078]
[1763402868581,0.00293451,3068.3,3068.1,3.2078]
[1763402868778,0.00293451,3068.3,3067.5,3.2078]
[1763402869570,0.00293451,3068.3,3067.9,3.2078]
[1763402870175,0.00293451,3068.3,3068.1,0.7918]
[1763402870482,0.00489484,3068.6,3068.1,0.7918]
[1763402870685,0.00489484,3068.6,3068.3,3.2078]
[1763402871480,0.00764657,3068.6,3068.3,3.2078]
[1763402872482,0.00764657,3068.6,3067.9,3.2078]
[1763402872879,3.2078,3068.5,3067.5,3.2078]
[1763402873772,0.00764657,3068.6,3068.0,3.2078]
[1763402876179,3.2078,3068.1,3066.8,3.20784988]
[1763402876381,3.2078,3068.1,3067.2,3.9996]
[1763402876585,3.2078,3068.2,3067.2,3.9996]
[1763402876779,3.2078,3067.8,3067.2,3.9996]
[1763402876980,3.2078,3067.8,3066.8,4.988e-05]
[1763402876981,3.2078,3067.8,3066.8,3.20784988]
[1763402877284,1.69758554,3068.6,3066.8,3.20784988]
[1763402877285,3.2078,3067.4,3066.8,3.20784988]
[1763402879282,3.2078,3067.0,3066.8,4.988e-05]
[1763402880183,1.12669214,3067.9,3066.8,6.00004988]
[1763402880487,3.2078,3067.3,3066.8,4.988e-05]
[1763402880684,3.2078,3066.9,3066.8,4.988e-05]
[1763402880886,1.87089214,3068.0,3066.8,4.988e-05]
[1763402880887,3.2078,3067.0,3066.8,4.988e-05]
[1763402881076,3.2078,3067.0,3065.9,3.2078]
[1763402881274,3.2078,3066.2,3065.4,3.9996]
[1763402881877,3.2078,3065.8,3065.4,3.9996]
[1763402882079,0.00405683,3065.8,3065.4,4.00223326]
[1763402882488,3.21185683,3065.8,3065.4,4.00223326]
[1763402882676,3.21185683,3065.8,3065.4,3.21043326]
[1763402882878,3.21185683,3065.8,3065.4,0.00263326]
[1763402883087,3.21185683,3065.8,3064.8,0.7769]
[1763402883282,3.21185683,3065.8,3064.0,0.7769]
[1763402883283,3.2078,3065.2,3064.0,0.7769]
[1763402883476,3.2078,3064.1,3063.2,0.7769]
[1763402883679,3.2078,3064.1,3063.1,3.2078]
[1763402883886,3.2078,3063.7,3063.1,3.2078]
[1763402884187,1.12669214,3064.6,3061.9,3.2078]
[1763402884188,3.2078,3063.2,3061.9,3.2078]
[1763402884390,3.2078,3062.5,3061.9,3.2078]
[1763402884577,0.00489484,3062.9,3062.7,0.7769]
[1763402884779,2.23157884,3064.6,3062.7,0.7769]
[1763402884780,3.2078,3064.1,3062.8,9.2078]
[1763402884985,3.2078,3064.1,3062.8,3.2078]
[1763402885298,0.00377753,3064.1,3063.8,3.2078]
[1763402885585,3.2078,3064.0,3063.6,0.7769]
[1763402885785,3.2078,3064.0,3063.5,0.00489484]
[1763402885989,3.2078,3064.0,3063.6,0.7769]
[1763402886184,0.00867237,3064.1,3063.8,3.2078]
[1763402886382,3.2078,3064.9,3063.9,9.2632]
[1763402886684,3.2078,3064.5,3063.8,3.2078]
[1763402887089,3.2078,3064.4,3063.8,3.2078]
[1763402887292,3.21504782,3064.4,3063.8,3.2078]
[1763402887586,0.00724782,3064.4,3063.8,3.2078]
[1763402889988,3.2078,3064.9,3063.8,3.2078]
[1763402890185,3.2078,3064.5,3063.8,3.2078]
[1763402890493,3.2078,3064.9,3063.8,3.2078]
[1763402890683,3.2078,3064.5,3063.8,3.2078]
[1763402890885,3.2078,3065.7,3064.3,3.2078]
[1763402891194,3.2078,3065.7,3063.6,0.7769]
[1763402891195,3.2078,3065.7,3065.3,3.2078]
[1763402892095,3.2078,3065.7,3065.3,3.21018479]
[1763402892096,3.21192248,3065.7,3065.3,3.21018479]
[1763402892297,0.00412248,3065.7,3065.3,3.21018479]
[1763402892500,2.248e-05,3065.7,3065.3,3.21018479]
[1763402892794,2.248e-05,3065.7,3065.3,6.47178479]
[1763402892992,3.2078,3066.7,3065.4,9.2616]
[1763402893182,3.2078,3066.7,3065.9,3.2078]
[1763402893496,3.2078,3066.7,3065.3,0.00238479]
[1763402893497,3.2078,3067.3,3066.6,3.2078]
[1763402893888,3.2078,3067.3,3067.0,3.2078]
[1763402893889,0.00781484,3067.3,3067.0,3.2078]
[1763402894093,3.2078,3068.3,3067.0,3.2078]
[1763402894501,3.2078,3067.4,3066.7,3.2078]
[1763402894692,3.2078,3067.9,3067.1,3.2078]
[1763402895091,0.00319377,3067.8,3067.1,3.2078]
[1763402900795,3.2078,3067.4,3066.7,3.2078]
[1763402902593,3.2078,3067.4,3066.6,0.00489484]
[1763402902790,3.2078,3066.8,3065.8,3.2078]
[1763402902990,3.2078,3066.8,3066.2,3.2078]
[1763402903393,3.2078,3067.7,3066.6,3.2078]
[1763402903589,0.00319377,3067.8,3067.6,3.2078]
[1763402903791,0.0346,3068.7,3067.6,3.2078]
[1763402903792,0.0346,3068.7,3067.6,3.21124983]
[1763402904097,0.0346,3068.7,3068.3,3.2078]
[1763402904597,3.2078,3068.5,3067.7,3.2078]
[1763402904803,0.00489484,3068.4,3067.8,0.00489484]
[1763402905602,0.00489484,3068.4,3068.1,3.2078]
[1763402906006,0.00340379,3068.5,3068.1,6.4662]
[1763402906203,0.0346,3068.7,3068.1,3.2078]
[1763402906405,0.0346,3068.7,3068.5,3.2078]
[1763402906605,3.2078,3069.6,3068.6,3.2584]
[1763402906808,1.38179367,3070.8,3069.2,3.2078]
[1763402906809,3.2078,3070.0,3069.2,3.2078]
[1763402907108,3.21079241,3070.0,3069.3,0.00488598]
[1763402907611,0.00299241,3070.0,3069.3,3.21268598]
[1763402908711,0.7765,3069.6,3069.3,0.00488598]
[1763402908918,0.7765,3069.6,3068.8,3.2078]
[1763402909801,3.2078,3069.0,3068.4,3.2078]
[1763402910001,3.2078,3068.6,3068.4,0.00488598]
[1763402911210,3.2078,3068.6,3067.6,3.21124983]
[1763402911211,6.0,3068.5,3067.6,0.00344983]
[1763402911505,3.2078,3067.7,3066.3,3.2078]
[1763402911710,3.2078,3067.0,3066.3,3.2078]
[1763402911905,3.2078,3067.0,3065.9,3.2078]
[1763402912409,3.2078,3066.3,3066.1,0.00488598]
[1763402913015,3.2078,3066.7,3066.1,0.00488598]
[1763402913815,3.2078,3066.3,3066.1,0.00488598]
[1763402914407,3.2078,3066.7,3066.1,0.00488598]
[1763402914612,0.00488598,3066.8,3066.5,3.2078]
[1763402914912,3.9843,3068.1,3066.5,3.2078]
[1763402915210,3.9843,3068.1,3066.2,3.2608]
[1763402915211,3.2078,3067.7,3067.1,3.2078]
[1763402915409,3.2078,3067.7,3066.6,3.2078]
[1763402915609,3.2078,3067.7,3067.0,3.2078]
[1763402915916,3.21687775,3067.7,3067.0,3.2078]
[1763402916103,3.21687775,3067.7,3066.1,0.00488598]
[1763402916104,0.00907775,3067.7,3067.4,3.2078]
[1763402916305,3.2078,3068.2,3067.4,3.2078]
[1763402917510,3.21104447,3068.2,3067.4,3.2078]
[1763402917906,3.2078,3067.8,3067.4,3.2078]
[1763402918106,3.2078,3067.8,3066.8,3.2078]
[1763402919410,3.21104447,3068.2,3067.2,3.2078]
[1763402919907,3.2078,3067.8,3067.2,3.2078]
[1763402920713,3.21104447,3068.2,3067.2,3.2078]
[1763402920907,3.2078,3067.3,3066.4,3.2078]
[1763402921110,3.2078,3067.7,3066.8,3.2078]
[1763402921417,3.2078,3067.7,3067.2,3.2078]
[1763402921611,3.9843,3068.1,3067.2,3.2078]
[1763402922109,3.2078,3068.1,3067.2,3.5962]
[1763402922309,3.2078,3068.5,3068.0,3.2078]
[1763402922514,3.2078,3068.5,3068.1,0.3852]
[1763402922712,3.2078,3068.5,3068.0,3.2078]
[1763402923114,3.2078,3069.7,3068.4,3.2078]
[1763402923311,0.00309139,3069.7,3069.5,3.2078]
[1763402923517,3.2078,3070.3,3069.6,3.2576]
[1763402923715,3.2078,3070.3,3069.9,3.2078]
[1763402923912,3.2078,3071.5,3070.0,0.3822]
[1763402924217,3.2078,3071.5,3070.6,3.2078]
[1763402924406,3.21101338,3071.5,3070.6,3.21066268]
[1763402925217,3.2078,3071.0,3070.6,0.00286268]
[1763402925412,3.2078,3071.0,3070.6,3.21066268]
[1763402926715,0.00321338,3071.5,3070.6,3.21066268]
[1763402927014,0.00321338,3071.5,3071.0,3.2078]
[1763402928814,0.00321338,3071.5,3070.6,3.21066268]
[1763402930026,3.2078,3071.0,3070.6,0.00286268]
[1763402931014,3.21101338,3071.5,3070.6,6.46666268]
[1763402931212,3.21101338,3071.5,3071.0,3.2078]
[1763402931420,3.21101338,3071.5,3070.6,0.00286268]
[1763402931421,0.00321338,3071.5,3071.4,3.2078]
[1763402931626,3.2078,3072.4,3071.4,3.2078]
[1763402931824,3.2078,3072.0,3071.1,0.00488598]
[1763402932217,0.7765,3072.6,3071.1,0.00488598]
[1763402932218,3.2078,3072.4,3071.4,3.2078]
[1763402932421,0.7765,3072.6,3071.1,0.00488598]
[1763402932422,3.2078,3071.8,3071.1,0.00488598]
[1763402932619,3.21187354,3071.8,3071.1,0.00488598]
[1763402932922,3.21187354,3071.8,3071.3,3.2078]
[1763402933118,3.2078,3072.4,3071.7,3.2078]
[1763402933324,0.7765,3072.6,3072.1,3.2078]
[1763402934118,0.77929232,3072.6,3072.1,3.2078]
[1763402934418,0.00279232,3072.6,3072.5,3.2078]
[1763402934627,0.0346,3073.7,3072.5,3.2078]
[1763402934830,0.7765,3072.6,3072.5,3.2078]
[1763402935026,0.7765,3072.6,3072.2,0.00488598]
[1763402935221,0.7765,3072.6,3071.4,3.2078]
[1763402935528,0.7765,3071.7,3071.4,3.2078]
[1763402936124,0.7765,3071.7,3071.3,3.2078]
[1763402936321,0.7765,3071.7,3071.2,0.00488598]
[1763402936521,3.2078,3071.6,3071.2,0.00488598]
[1763402937317,0.7765,3071.7,3071.2,0.00488598]
[1763402938028,0.7765,3071.7,3070.6,0.00286268]
[1763402938029,0.7264,3070.8,3070.6,0.00286268]
[1763402939426,3.2078,3071.3,3070.6,0.00286268]
[1763402939631,3.9843,3071.7,3070.9,3.2078]
[1763402940026,0.7765,3071.7,3071.3,3.2078]
[1763402940424,3.9843,3071.7,3070.9,3.2078]
[1763402940630,0.7765,3071.7,3071.3,3.2078]
[1763402940929,3.9843,3071.7,3070.9,3.2078]
[1763402941121,3.9843,3071.7,3070.6,0.00286268]
[1763402941122,0.00488598,3071.8,3071.6,3.2078]
[1763402941627,0.7264,3071.7,3071.6,3.2078]
[1763402942029,0.00488598,3071.8,3071.6,3.2078]
[1763402942430,0.7264,3071.7,3071.6,3.2078]
[1763402944337,0.7264,3071.7,3071.2,3.2078]
[1763402944833,0.7264,3071.7,3070.6,0.00286268]
[1763402944834,0.7264,3070.8,3070.6,0.00286268]
[1763402945924,0.7264,3070.8,3070.4,3.21268598]
[1763402945925,3.9342,3070.8,3070.0,3.2078]
[1763402946125,3.9342,3070.8,3069.6,3.2078]
[1763402946326,3.2078,3070.4,3069.6,3.2078]
[1763402946528,3.9342,3070.8,3069.6,3.2078]
[1763402946728,3.9342,3070.8,3070.0,3.2078]
[1763402946939,3.93830385,3070.8,3070.0,3.21009281]
[1763402947135,0.00488598,3070.7,3070.1,0.00488598]
[1763402947344,0.7264,3071.7,3070.6,3.2078]
[1763402947533,0.7264,3071.7,3071.0,3.2078]
[1763402947739,3.2078,3071.6,3071.0,3.2078]
[1763402948234,0.71526465,3071.5,3071.0,3.2078]
[1763402949036,0.7264,3070.8,3070.1,0.00488598]
[1763402949338,0.7264,3069.9,3069.3,3.2078]
[1763402949529,0.7264,3069.9,3069.7,3.2078]
[1763402950437,0.7264,3069.9,3069.7,3.21112108]
[1763402950639,0.00488598,3070.1,3069.7,3.21112108]
[1763402953034,0.00488598,3070.1,3069.7,0.00332108]
[1763402953229,0.7264,3069.9,3069.7,3.21112108]
[1763402954640,0.71830352,3069.8,3069.5,0.00488598]
[1763402955545,0.71830352,3069.8,3069.5,0.00777363]
[1763402956444,0.00488598,3070.1,3069.6,3.2078]
[1763402956645,0.00488598,3070.1,3070.0,3.2078]
[1763402956946,0.7264,3069.9,3069.5,0.00777363]
[1763402957838,0.00488598,3070.1,3069.5,0.00777363]
[1763402958348,0.00488598,3070.1,3069.9,3.2078]
[1763402959236,0.7264,3070.8,3069.9,3.2078]
[1763402959438,0.7264,3070.8,3070.3,3.2078]
[1763402959745,3.92539575,3070.7,3070.3,3.2078]
[1763402959947,3.2078,3070.7,3070.3,3.2078]
[1763402960146,0.71782703,3070.6,3069.6,3.2078]
[1763402960343,3.2078,3070.3,3069.6,3.2078]
[1763402960539,3.2078,3069.9,3069.5,0.00777363]
[1763402961446,3.2078,3070.3,3069.5,0.00777363]
[1763402961646,3.2078,3070.3,3069.6,3.2078]
[1763402962447,0.00488598,3070.4,3069.5,0.00777363]
[1763402962448,3.2078,3069.9,3069.5,0.00777363]
[1763402962747,3.2078,3070.3,3069.6,3.2078]
[1763402969854,0.00488598,3070.4,3070.0,3.2078]
[1763402970055,3.2078,3070.8,3070.0,3.2078]
[1763402970246,0.00324705,3071.6,3070.4,3.9011]
[1763402970549,3.2078,3071.4,3070.8,3.2078]
[1763402970752,3.2078,3071.4,3070.4,3.9011]
[1763402970956,0.00488598,3071.2,3070.4,3.9011]
[1763402971548,0.00488598,3071.2,3070.4,3.2078]
[1763402971742,0.72008598,3071.2,3070.4,3.2078]
[1763402972658,0.00488598,3071.2,3070.4,3.2078]
[1763402973448,3.2078,3071.0,3070.4,3.2078]
[1763402973657,0.71786834,3070.9,3070.4,3.2078]
[1763402973953,3.2078,3071.0,3070.4,3.2078]
[1763402974147,0.71782146,3070.9,3070.4,3.2078]
[1763402974353,0.00488598,3071.2,3070.8,3.2078]
[1763402975050,0.00488598,3071.2,3069.7,1.71044878]
[1763402975051,3.2078,3071.1,3070.4,3.2078]
[1763402975458,0.7152,3070.4,3069.5,0.00777363]
[1763402975659,3.2078,3070.0,3069.5,0.00777363]
[1763402976250,3.923,3070.4,3069.6,3.2078]
[1763402976856,3.923,3070.4,3069.5,0.00777363]
[1763402976857,0.71786235,3070.3,3069.5,0.00777363]
[1763402977056,3.923,3069.6,3069.5,0.00777363]
[1763402977260,4.64086235,3069.6,3069.5,0.00777363]
[1763402977461,4.64086235,3069.6,3068.4,3.2078]
[1763402977652,3.2078,3069.2,3068.4,3.2078]
[1763402978349,0.00488598,3069.1,3068.5,0.00488598]
[1763402979556,3.2078,3068.6,3067.3,1.71044878]
[1763402979755,3.2078,3067.4,3066.4,3.2078]
[1763402979950,0.7152,3068.0,3066.4,3.2078]
[1763402979951,3.2078,3066.8,3066.4,3.2078]
[1763402980156,3.2078,3066.5,3065.9,3.2078]
[1763402980452,0.00488598,3066.5,3066.3,3.2078]
[1763402980661,0.00776128,3066.5,3066.3,3.2078]
[1763402981650,3.2078,3067.2,3066.4,9.2608]
[1763402981852,3.2078,3066.9,3066.3,3.2078]
[1763402982054,3.2078,3066.5,3065.9,3.21551584]
[1763402982458,3.2078,3066.5,3065.9,0.00771584]
[1763402982660,3.2078,3066.4,3065.9,0.00771584]
[1763402982857,3.923,3066.4,3065.9,0.00771584]
[1763402983163,3.2078,3066.0,3065.9,0.00771584]
[1763402988452,0.7152,3066.4,3065.9,3.21551584]
[1763402988663,0.00751001,3066.5,3065.9,3.21551584]
[1763402988664,0.00751001,3066.5,3066.3,3.2078]
[1763402991163,0.00751001,3066.5,3065.9,3.21551584]
[1763402992458,0.00751001,3066.5,3066.3,3.2078]
[1763402993251,3.2078,3067.3,3066.3,3.2078]
[1763402993252,3.2078,3067.3,3066.4,3.2608]
[1763402993466,3.2078,3067.3,3066.7,3.2078]
[1763402994167,3.21678933,3067.3,3066.7,3.2078]
[1763402994561,3.21678933,3067.3,3066.3,3.2078]
[1763402994562,0.7152,3067.2,3066.3,3.2078]
[1763402995162,3.2078,3066.8,3066.3,3.2078]
[1763402996264,0.7152,3067.2,3065.9,49.11871584]
[1763402996265,3.2078,3066.4,3065.9,0.00771584]
[1763402997163,3.892,3066.4,3065.9,0.00771584]
[1763402997365,3.2078,3066.0,3065.9,0.00771584]
[1763402997573,3.892,3066.4,3065.9,0.00771584]
[1763402997869,3.2078,3066.4,3065.9,0.00771584]
[1763402998567,3.2078,3066.8,3066.1,3.2078]
[1763402998872,3.2078,3066.8,3066.1,9.5478]
[1763402999070,0.00898933,3067.3,3066.7,3.2078]
[1763402999365,0.00898933,3067.3,3067.2,3.2078]
[1763402999765,0.00898933,3067.3,3066.8,3.2078]
[1763403000166,3.2078,3066.9,3065.9,3.21551584]
[1763403000370,0.6842,3066.4,3065.9,3.21551584]
[1763403000567,3.2078,3066.5,3065.9,3.21551584]
[1763403000770,0.6842,3067.2,3066.3,3.2078]
[1763403000972,3.21678933,3067.3,3066.7,3.2078]
[1763403001377,0.00898933,3067.3,3067.1,3.2078]
[1763403001870,3.2078,3068.6,3067.2,6.6352]
[1763403002075,3.2078,3068.6,3067.6,3.2078]
[1763403002272,0.7152,3068.8,3068.0,3.2078]
[1763403002472,3.2078,3069.5,3068.4,3.2078]
[1763403002770,3.2078,3069.3,3068.6,3.2078]
[1763403002971,3.2078,3069.2,3068.6,0.00747844]
[1763403003170,0.00251176,3069.3,3068.6,3.21527844]
[1763403003373,0.00251176,3069.3,3069.0,3.2078]
[1763403003571,0.6842,3070.4,3069.1,3.2576]
[1763403003769,3.2078,3071.0,3070.3,3.2078]
[1763403004280,3.2078,3071.0,3070.3,0.00488598]
[1763403004575,3.21011088,3071.0,3070.4,0.6352]
[1763403004769,3.21011088,3071.0,3070.3,3.21268598]
[1763403004972,0.6842,3070.4,3070.3,0.00488598]
[1763403005175,0.6842,3070.4,3069.3,3.2078]
[1763403005372,3.892,3070.4,3069.3,3.2078]
[1763403005573,3.2078,3070.4,3069.3,3.2078]
[1763403005886,3.2078,3070.0,3069.3,3.2078]
[1763403006274,0.00488598,3070.0,3069.8,3.2078]
[1763403006478,0.00488598,3070.0,3069.3,0.00488598]
[1763403006479,0.00488598,3070.0,3069.4,3.2078]
[1763403008083,0.00488598,3070.0,3069.9,3.2078]
[1763403008287,3.2078,3070.7,3069.9,3.2078]
[1763403008288,0.00231088,3071.0,3069.9,3.2078]
[1763403008482,0.00231088,3071.0,3070.9,3.2078]
[1763403008783,3.2078,3071.9,3070.9,3.2108067]
[1763403009285,3.2078,3072.3,3071.3,3.2078]
[1763403009475,3.2078,3071.9,3071.3,3.2078]
[1763403009675,3.21169562,3071.9,3071.3,3.2078]
[1763403009878,0.00389562,3071.9,3071.3,3.2078]
[1763403010082,0.00389562,3071.9,3071.7,3.2078]
[1763403011286,3.2078,3073.1,3071.7,3.2078]
[1763403011474,3.2078,3073.1,3072.4,3.2078]
[1763403012082,3.2078,3073.1,3072.2,7.29]
[1763403012083,3.2078,3073.5,3072.8,3.2078]
[1763403012275,1.81089214,3075.2,3072.8,3.2078]
[1763403012276,0.6842,3075.2,3073.4,3.2078]
[1763403012483,0.6842,3075.2,3074.7,3.2078]
[1763403012889,0.6842,3074.4,3073.5,3.2078]
[1763403013090,0.52746,3074.1,3073.9,3.2078]
[1763403013289,0.00362617,3074.1,3073.9,3.21097253]
[1763403013790,0.6842,3075.2,3073.9,3.21097253]
[1763403013988,0.6842,3075.2,3074.6,3.2078]
[1763403014686,8.9822,3075.2,3074.6,3.2078]
[1763403014882,0.68707758,3075.2,3074.6,3.2078]
[1763403015085,2.781,3075.1,3074.6,3.2078]
[1763403015389,8.98507758,3075.2,3074.6,3.2078]
[1763403015583,8.98507758,3075.2,3075.1,3.2078]
[1763403015584,0.68707758,3075.2,3075.1,3.2078]
[1763403015984,0.68707758,3075.2,3073.9,0.00317253]
[1763403015985,0.68707758,3075.2,3074.7,3.2078]
[1763403016189,3.2078,3075.0,3074.2,3.2078]
[1763403016489,3.2078,3074.6,3073.9,0.00317253]
[1763403016694,0.6842,3074.4,3073.9,0.00317253]
[1763403016891,3.2078,3074.6,3073.9,0.00317253]
[1763403017184,3.2078,3074.6,3074.2,3.2078]
[1763403017492,3.2078,3074.8,3074.2,3.2078]
[1763403017788,11.5018,3074.8,3074.2,3.2078]
[1763403018179,3.8462,3074.4,3073.9,0.00317253]
[1763403019088,3.8462,3074.4,3073.6,0.00488598]
[1763403019286,8.293,3074.3,3073.6,0.00488598]
[1763403019491,0.6384,3073.5,3072.6,3.2078]
[1763403019793,3.2078,3073.3,3072.6,3.2078]
[1763403019986,0.6384,3073.5,3073.0,3.2078]
[1763403020190,3.2078,3074.0,3073.0,3.2078]
[1763403020387,0.0048587,3073.8,3073.2,0.0048778]
[1763403020687,0.6384,3073.5,3073.2,0.0048778]
[1763403021077,2.8464,3073.5,3073.2,0.0048778]
[1763403022090,8.292,3073.4,3073.2,0.0048778]
[1763403022386,8.9294,3073.5,3073.2,0.0048778]
[1763403022592,0.6384,3073.5,3073.2,0.0048778]
[1763403022788,3.2126587,3073.8,3073.2,0.0048778]
[1763403023293,0.0048587,3073.8,3073.6,3.73534]
[1763403023486,0.0048587,3073.8,3073.6,3.2078]
[1763403023686,0.0048587,3073.8,3073.6,3.73533]
[1763403023985,0.0048587,3073.8,3073.2,3.2126778]
[1763403024190,0.0048587,3073.8,3073.7,3.2078]
[1763403025088,3.2078,3075.4,3073.7,9.2078]
[1763403025292,0.00287758,3075.2,3075.1,0.52728]
[1763403025484,3.2078,3075.8,3075.1,3.21145851]
[1763403025684,3.2078,3076.3,3075.7,3.2078]
[1763403025879,3.2078,3076.3,3075.3,3.2078]
[1763403026079,3.2078,3076.3,3075.1,0.00365851]
[1763403026080,3.2078,3076.3,3075.7,3.73497]
[1763403026286,3.2078,3076.3,3075.7,3.2078]
[1763403026589,3.2078,3076.3,3075.5,0.0048778]
[1763403026590,0.6384,3076.2,3075.5,0.0048778]
[1763403026790,3.2078,3075.8,3075.5,0.0048778]
[1763403027092,0.6384,3076.2,3075.5,0.0048778]
[1763403027287,3.2078,3076.0,3075.5,0.0048778]
[1763403027486,0.6384,3076.2,3075.9,3.2078]
[1763403027784,0.00408837,3076.3,3075.9,3.2078]
[1763403028889,0.00408837,3076.3,3076.1,0.52711]
[1763403029191,0.00408837,3076.3,3075.9,3.2078]
[1763403029493,3.2078,3076.0,3075.5,0.0048778]
[1763403030488,3.2078,3075.6,3075.5,0.0048778]
[1763403030696,3.2078,3076.0,3075.5,0.0048778]
[1763403030893,0.6684,3076.2,3075.7,3.2078]
[1763403031291,0.00408837,3076.3,3075.7,3.2078]
[1763403031497,0.00408837,3076.3,3076.1,3.2078]
[1763403032495,0.00408837,3076.3,3075.5,0.0048778]
[1763403032496,3.21188837,3076.3,3075.7,3.2078]
[1763403032706,3.2078,3075.9,3075.5,0.0048778]
[1763403033402,0.6684,3076.2,3075.5,0.0048778]
[1763403033698,3.2078,3075.8,3075.5,0.0048778]
[1763403033900,3.8762,3076.2,3075.5,0.0048778]
[1763403034091,0.00408837,3076.3,3076.1,3.2078]
[1763403034399,0.00408837,3076.3,3076.1,3.73491]
[1763403034603,0.00408837,3076.3,3076.2,0.52709]
[1763403034895,12.84469214,3078.1,3076.5,0.52702]
[1763403034896,3.8762,3077.6,3076.5,0.52702]
[1763403035197,3.8762,3077.6,3076.0,0.4204]
[1763403035198,3.2078,3077.6,3076.7,3.2078]
[1763403035399,0.09064158,3078.2,3076.0,0.4204]
[1763403035400,3.2078,3078.1,3077.2,3.2078]
[1763403035596,3.2078,3078.1,3077.3,0.0048778]
[1763403035907,3.2078,3077.5,3077.3,0.00907845]
[1763403036396,3.2078,3077.9,3077.4,6.0]
[1763403036598,0.0346,3078.7,3078.1,0.52676]
[1763403036904,0.0346,3078.7,3078.6,3.2078]
[1763403037688,0.0376453,3078.7,3078.2,3.2078]
[1763403037893,0.0376453,3078.7,3078.6,3.2078]
[1763403038394,1.12669214,3080.8,3079.0,3.2078]
[1763403038600,3.8762,3080.7,3080.1,3.2078]
[1763403038791,0.6684,3080.7,3080.1,3.2078]